[Event "Late-Titled-Tuesday-Blitz-October-03-2023"]
[Site "Chess.com"]
[Date "2023.10.03"]
[Round "8"]
[White "Verony64"]
[Black "akanga001"]
[Result "1-0"]
[WhiteElo "2226"]
[BlackElo "2021"]
[TimeControl "180+1"]
[EndTime "15:22:51 PDT"]
[Termination "Verony64 won by resignation"]

1. d4 {[%clk 0:03:00.9]} 1... d5 {[%clk 0:01:14.2]} 2. c4 {[%clk 0:02:58.6]}
2... e6 {[%clk 0:01:13.6]} 3. cxd5 {[%clk 0:02:57.9]} 3... exd5 {[%clk
0:01:13.3]} 4. Nc3 {[%clk 0:02:58.5]} 4... Nf6 {[%clk 0:01:13.3]} 5. Bg5 {[%clk
0:02:58.1]} 5... c6 {[%clk 0:01:13.8]} 6. e3 {[%clk 0:02:58.2]} 6... Bd6 {[%clk
0:01:14.1]} 7. Qc2 {[%clk 0:02:56.7]} 7... O-O {[%clk 0:01:13.8]} 8. Bd3 {[%clk
0:02:55.8]} 8... h6 {[%clk 0:01:11.8]} 9. Bh4 {[%clk 0:02:54.4]} 9... Be6 {[%clk
0:01:11.2]} 10. Nge2 {[%clk 0:02:53.7]} 10... Nbd7 {[%clk 0:01:10.9]} 11. O-O
{[%clk 0:02:53.7]} 11... Rc8 {[%clk 0:01:07.6]} 12. f3 {[%clk 0:02:52.8]} 12...
b5 {[%clk 0:01:04.8]} 13. a3 {[%clk 0:02:50.2]} 13... a5 {[%clk 0:01:01.8]} 14.
Bf2 {[%clk 0:02:40.1]} 14... Nb6 {[%clk 0:00:58.5]} 15. e4 {[%clk 0:02:29.3]}
15... dxe4 {[%clk 0:00:55.3]} 16. fxe4 {[%clk 0:02:28.1]} 16... Bb8 {[%clk
0:00:45.2]} 17. e5 {[%clk 0:02:26.3]} 17... Nfd5 {[%clk 0:00:44.4]} 18. Ne4
{[%clk 0:02:24.9]} 18... Nc4 {[%clk 0:00:40.8]} 19. Qc1 {[%clk 0:02:09.9]} 19...
a4 {[%clk 0:00:39.3]} 20. N2g3 {[%clk 0:01:59.5]} 20... Ndb6 {[%clk 0:00:19.1]}
21. Nh5 {[%clk 0:01:51.8]} 21... Nxe5 {[%clk 0:00:17.5]} 22. Nef6+ {[%clk
0:01:36.4]} 22... gxf6 {[%clk 0:00:16.4]} 23. Qxh6 {[%clk 0:01:34.2]} 23... Nf3+
{[%clk 0:00:05.9]} 24. gxf3 {[%clk 0:01:29.4]} 1-0

[Event "Late-Titled-Tuesday-Blitz-October-03-2023"]
[Site "Chess.com"]
[Date "2023.10.03"]
[Round "8"]
[White "Mariia89"]
[Black "GlavkonVVS"]
[Result "0-1"]
[WhiteElo "2065"]
[BlackElo "2565"]
[TimeControl "180+1"]
[EndTime "15:22:59 PDT"]
[Termination "GlavkonVVS won by resignation"]

1. d4 {[%clk 0:02:53.1]} 1... Nf6 {[%clk 0:02:59.2]} 2. Nf3 {[%clk 0:02:53.1]}
2... c5 {[%clk 0:02:57.8]} 3. d5 {[%clk 0:02:52.9]} 3... e6 {[%clk 0:02:58.1]}
4. Nc3 {[%clk 0:02:52.8]} 4... exd5 {[%clk 0:02:58.4]} 5. Nxd5 {[%clk
0:02:52.7]} 5... Nxd5 {[%clk 0:02:59.3]} 6. Qxd5 {[%clk 0:02:53.5]} 6... d6
{[%clk 0:02:59.9]} 7. e4 {[%clk 0:02:44.5]} 7... Nc6 {[%clk 0:02:59.9]} 8. c3
{[%clk 0:02:23.3]} 8... Be6 {[%clk 0:02:58.9]} 9. Qd3 {[%clk 0:02:23]} 9... d5
{[%clk 0:02:59]} 10. exd5 {[%clk 0:02:17.2]} 10... Qxd5 {[%clk 0:02:59.1]} 11.
Bf4 {[%clk 0:02:07.4]} 11... O-O-O {[%clk 0:02:51.4]} 12. Qxd5 {[%clk
0:01:38.7]} 12... Bxd5 {[%clk 0:02:51.2]} 13. Be2 {[%clk 0:01:33.3]} 13... Bd6
{[%clk 0:02:47.8]} 14. Bxd6 {[%clk 0:01:31.9]} 14... Rxd6 {[%clk 0:02:47.8]} 15.
O-O {[%clk 0:01:31.2]} 15... Re8 {[%clk 0:02:47.9]} 16. Rfe1 {[%clk 0:01:30.6]}
16... Rde6 {[%clk 0:02:45.2]} 17. Bf1 {[%clk 0:01:25.8]} 17... Bxf3 {[%clk
0:02:44.4]} 18. Rxe6 {[%clk 0:01:25.3]} 18... Rxe6 {[%clk 0:02:44.6]} 19. gxf3
{[%clk 0:01:26.2]} 19... Rf6 {[%clk 0:02:41.1]} 20. Bg2 {[%clk 0:01:21.6]} 20...
Kc7 {[%clk 0:02:32.4]} 21. Re1 {[%clk 0:01:20.7]} 21... g5 {[%clk 0:02:22.6]}
22. Re4 {[%clk 0:01:06.8]} 22... h6 {[%clk 0:02:20.3]} 23. h4 {[%clk 0:01:06.1]}
23... Rf4 {[%clk 0:02:07.9]} 24. hxg5 {[%clk 0:01:03.9]} 24... hxg5 {[%clk
0:02:07.7]} 25. Kf1 {[%clk 0:00:53.5]} 25... f6 {[%clk 0:01:56]} 26. Ke2 {[%clk
0:00:51.8]} 26... Ne5 {[%clk 0:01:54.6]} 27. b3 {[%clk 0:00:37.5]} 27... Kd6
{[%clk 0:01:47]} 28. Re3 {[%clk 0:00:36.9]} 28... b5 {[%clk 0:01:41.7]} 29. Bh3
{[%clk 0:00:35.6]} 29... a5 {[%clk 0:01:39.7]} 30. Bc8 {[%clk 0:00:27.8]} 30...
b4 {[%clk 0:01:37.8]} 31. Ba6 {[%clk 0:00:24.9]} 31... Rh4 {[%clk 0:01:32.2]}
32. Rxe5 {[%clk 0:00:20.2]} 32... Kxe5 {[%clk 0:01:30.9]} 0-1

[Event "Late-Titled-Tuesday-Blitz-October-03-2023"]
[Site "Chess.com"]
[Date "2023.10.03"]
[Round "8"]
[White "ferrufino64"]
[Black "PapaieDudu"]
[Result "0-1"]
[WhiteElo "2226"]
[BlackElo "2386"]
[TimeControl "180+1"]
[EndTime "15:22:59 PDT"]
[Termination "PapaieDudu won by resignation"]

1. e4 {[%clk 0:03:00.9]} 1... c5 {[%clk 0:02:59.8]} 2. Nf3 {[%clk 0:02:59.4]}
2... d6 {[%clk 0:03:00]} 3. d4 {[%clk 0:02:59.6]} 3... cxd4 {[%clk 0:03:00.9]}
4. Nxd4 {[%clk 0:03:00.2]} 4... Nf6 {[%clk 0:03:01.6]} 5. Nc3 {[%clk 0:03:00.4]}
5... a6 {[%clk 0:03:02.4]} 6. Be2 {[%clk 0:02:55.8]} 6... b5 {[%clk 0:03:00.1]}
7. a3 {[%clk 0:02:55]} 7... Bb7 {[%clk 0:03:00.1]} 8. f3 {[%clk 0:02:54.3]} 8...
e6 {[%clk 0:02:59.3]} 9. Be3 {[%clk 0:02:54.3]} 9... Nbd7 {[%clk 0:02:59.7]} 10.
Qd2 {[%clk 0:02:54.6]} 10... Be7 {[%clk 0:02:58.4]} 11. O-O-O {[%clk 0:02:51.5]}
11... O-O {[%clk 0:02:58.3]} 12. g4 {[%clk 0:02:51.9]} 12... Nb6 {[%clk
0:02:58.3]} 13. h4 {[%clk 0:02:51.4]} 13... Rc8 {[%clk 0:02:57.3]} 14. h5 {[%clk
0:02:50.4]} 14... d5 {[%clk 0:02:52.7]} 15. g5 {[%clk 0:02:49.5]} 15... Nfd7
{[%clk 0:02:52.9]} 16. g6 {[%clk 0:02:40.2]} 16... b4 {[%clk 0:02:52.2]} 17.
gxf7+ {[%clk 0:02:36.6]} 17... Kxf7 {[%clk 0:02:49.3]} 18. axb4 {[%clk
0:02:31.8]} 18... Bxb4 {[%clk 0:02:49.9]} 19. Bg5 {[%clk 0:02:25.7]} 19... Qc7
{[%clk 0:02:44]} 20. h6 {[%clk 0:01:27.6]} 20... g6 {[%clk 0:02:40.5]} 21. Nxe6
{[%clk 0:01:26.9]} 21... Kxe6 {[%clk 0:02:06.9]} 22. f4 {[%clk 0:01:22.8]} 22...
Bxc3 {[%clk 0:02:01]} 23. Bg4+ {[%clk 0:01:21.9]} 23... Kf7 {[%clk 0:02:01.5]}
24. bxc3 {[%clk 0:01:20.2]} 24... Qxc3 {[%clk 0:01:58]} 25. Be6+ {[%clk
0:01:04.2]} 25... Kxe6 {[%clk 0:01:53.7]} 26. exd5+ {[%clk 0:01:04.5]} 26... Kf7
{[%clk 0:01:51.8]} 27. Qe2 {[%clk 0:00:42]} 27... Qa1+ {[%clk 0:01:48.2]} 28.
Kd2 {[%clk 0:00:42.1]} 28... Qa5+ {[%clk 0:01:40.9]} 29. Kc1 {[%clk 0:00:42.4]}
29... Qa1+ {[%clk 0:01:28]} 30. Kd2 {[%clk 0:00:42.4]} 30... Nc4+ {[%clk
0:01:27.1]} 31. Ke1 {[%clk 0:00:37.4]} 31... Qa5+ {[%clk 0:01:25.8]} 32. Kf1
{[%clk 0:00:37.9]} 32... Rfe8 {[%clk 0:01:23.4]} 33. Qd3 {[%clk 0:00:35.8]}
33... Ne3+ {[%clk 0:01:22.3]} 34. Kf2 {[%clk 0:00:36.2]} 34... Nxd1+ {[%clk
0:01:19.2]} 35. Rxd1 {[%clk 0:00:37.1]} 35... Qc5+ {[%clk 0:01:19.3]} 36. Kf1
{[%clk 0:00:32.9]} 36... Qc4 {[%clk 0:01:17.2]} 0-1

[Event "Late-Titled-Tuesday-Blitz-October-03-2023"]
[Site "Chess.com"]
[Date "2023.10.03"]
[Round "8"]
[White "rookoco"]
[Black "Njal28"]
[Result "0-1"]
[WhiteElo "2771"]
[BlackElo "3084"]
[TimeControl "180+1"]
[EndTime "15:23:00 PDT"]
[Termination "Njal28 won by checkmate"]

1. e4 {[%clk 0:02:55.5]} 1... Nc6 {[%clk 0:03:00.6]} 2. Bb5 {[%clk 0:02:55]}
2... e5 {[%clk 0:03:01.5]} 3. Nf3 {[%clk 0:02:54.5]} 3... a6 {[%clk 0:03:01.2]}
4. Ba4 {[%clk 0:02:54.8]} 4... Nf6 {[%clk 0:03:01.2]} 5. O-O {[%clk 0:02:54.2]}
5... Be7 {[%clk 0:03:01.5]} 6. Re1 {[%clk 0:02:54.2]} 6... b5 {[%clk 0:03:01.9]}
7. Bb3 {[%clk 0:02:54.2]} 7... O-O {[%clk 0:03:02.7]} 8. c3 {[%clk 0:02:54.6]}
8... d5 {[%clk 0:03:03]} 9. exd5 {[%clk 0:02:54]} 9... e4 {[%clk 0:03:03]} 10.
dxc6 {[%clk 0:02:41.7]} 10... exf3 {[%clk 0:03:03.1]} 11. Qxf3 {[%clk 0:02:42]}
11... Bg4 {[%clk 0:03:01.6]} 12. Qg3 {[%clk 0:02:17.1]} 12... Bd6 {[%clk
0:03:01.8]} 13. f4 {[%clk 0:02:16.9]} 13... Re8 {[%clk 0:02:48.9]} 14. d4 {[%clk
0:02:16.3]} 14... Rxe1+ {[%clk 0:02:44.4]} 15. Qxe1 {[%clk 0:02:16]} 15... Qf8
{[%clk 0:02:45.3]} 16. Be3 {[%clk 0:01:54.4]} 16... Re8 {[%clk 0:02:46.2]} 17.
Qf2 {[%clk 0:01:54.1]} 17... Qe7 {[%clk 0:02:41.7]} 18. Bd2 {[%clk 0:01:52.9]}
18... Ne4 {[%clk 0:02:42]} 19. Qe3 {[%clk 0:01:52.1]} 19... Qd8 {[%clk
0:01:40.2]} 20. Be1 {[%clk 0:00:26.6]} 20... Nc5 {[%clk 0:01:22.5]} 21. Qg3
{[%clk 0:00:04.7]} 21... Bxf4 {[%clk 0:01:09.3]} 22. Bxf7+ {[%clk 0:00:03.4]}
22... Kf8 {[%clk 0:01:09.8]} 23. Qxg4 {[%clk 0:00:02.4]} 23... Rxe1+ {[%clk
0:01:09.6]} 24. Kf2 {[%clk 0:00:02.8]} 24... Nd3+ {[%clk 0:01:10.3]} 25. Kf3
{[%clk 0:00:03.4]} 25... Re3# {[%clk 0:01:11.2]} 0-1

[Event "Late-Titled-Tuesday-Blitz-October-03-2023"]
[Site "Chess.com"]
[Date "2023.10.03"]
[Round "8"]
[White "JoakimVonAnd"]
[Black "szachuspl"]
[Result "1-0"]
[WhiteElo "2717"]
[BlackElo "2528"]
[TimeControl "180+1"]
[EndTime "15:23:00 PDT"]
[Termination "JoakimVonAnd won by resignation"]

1. Nf3 {[%clk 0:02:59.3]} 1... Nf6 {[%clk 0:02:59.6]} 2. g3 {[%clk 0:02:55.5]}
2... g6 {[%clk 0:02:59.7]} 3. Bg2 {[%clk 0:02:55.8]} 3... Bg7 {[%clk 0:03:00.3]}
4. O-O {[%clk 0:02:56.4]} 4... O-O {[%clk 0:03:01]} 5. d4 {[%clk 0:02:56.9]}
5... d6 {[%clk 0:03:01.4]} 6. c4 {[%clk 0:02:56.9]} 6... Nbd7 {[%clk 0:03:01.7]}
7. Nc3 {[%clk 0:02:56.6]} 7... e5 {[%clk 0:03:02]} 8. e4 {[%clk 0:02:55.7]} 8...
Re8 {[%clk 0:03:02]} 9. Re1 {[%clk 0:02:56]} 9... exd4 {[%clk 0:02:58.8]} 10.
Nxd4 {[%clk 0:02:56.9]} 10... Nc5 {[%clk 0:02:59.4]} 11. h3 {[%clk 0:02:56.3]}
11... a5 {[%clk 0:02:58.8]} 12. Ndb5 {[%clk 0:02:55.9]} 12... Nfd7 {[%clk
0:02:57.1]} 13. Bf4 {[%clk 0:02:41.2]} 13... Ne5 {[%clk 0:02:53.2]} 14. Bf1
{[%clk 0:02:31]} 14... Bd7 {[%clk 0:02:51.5]} 15. Be3 {[%clk 0:02:24.6]} 15...
Bc6 {[%clk 0:02:37.3]} 16. f4 {[%clk 0:02:16.6]} 16... Ned7 {[%clk 0:02:37]} 17.
Bg2 {[%clk 0:02:15.2]} 17... Nf6 {[%clk 0:02:36.4]} 18. Bxc5 {[%clk 0:02:10.9]}
18... dxc5 {[%clk 0:02:36.5]} 19. Qxd8 {[%clk 0:02:11.1]} 19... Rexd8 {[%clk
0:02:34.2]} 20. Nxc7 {[%clk 0:02:11.4]} 20... Rac8 {[%clk 0:02:32.8]} 21. N7d5
{[%clk 0:02:11.5]} 21... Nxd5 {[%clk 0:02:31.7]} 22. cxd5 {[%clk 0:02:11.9]}
22... Be8 {[%clk 0:02:31]} 23. e5 {[%clk 0:02:11]} 23... b5 {[%clk 0:02:31.4]}
24. d6 {[%clk 0:02:10.5]} 24... c4 {[%clk 0:02:20]} 25. Nd5 {[%clk 0:02:09.3]}
25... Rc5 {[%clk 0:02:20.1]} 26. Rac1 {[%clk 0:01:59.3]} 26... Bd7 {[%clk
0:02:19.8]} 27. b3 {[%clk 0:01:57.3]} 27... Be6 {[%clk 0:02:16.4]} 28. bxc4
{[%clk 0:01:55.4]} 28... bxc4 {[%clk 0:02:15.4]} 29. Nc7 {[%clk 0:01:55.5]}
29... Rxc7 {[%clk 0:02:06.7]} 30. dxc7 {[%clk 0:01:42.5]} 30... Rc8 {[%clk
0:02:07.1]} 31. Red1 {[%clk 0:01:29.6]} 31... Rxc7 {[%clk 0:02:07.6]} 32. Rd8+
{[%clk 0:01:29.7]} 32... Bf8 {[%clk 0:02:07.6]} 33. Bd5 {[%clk 0:01:30.4]} 33...
c3 {[%clk 0:02:03.4]} 34. Bxe6 {[%clk 0:01:27.8]} 34... fxe6 {[%clk 0:02:03.5]}
35. Kf2 {[%clk 0:01:23.1]} 35... Kf7 {[%clk 0:01:53.6]} 36. Ke2 {[%clk
0:01:22.5]} 36... g5 {[%clk 0:01:48.9]} 37. Rd3 {[%clk 0:01:17.5]} 37... gxf4
{[%clk 0:01:43.7]} 38. gxf4 {[%clk 0:01:14.9]} 38... Bb4 {[%clk 0:01:32.5]} 39.
a3 {[%clk 0:01:14.4]} 39... Bxa3 {[%clk 0:01:32.9]} 40. Rcxc3 {[%clk 0:01:14.6]}
40... Rxc3 {[%clk 0:01:30.6]} 41. Rxc3 {[%clk 0:01:15.5]} 41... Bb4 {[%clk
0:01:31.3]} 42. Rc7+ {[%clk 0:01:15.2]} 42... Kg6 {[%clk 0:01:31.2]} 43. Ra7
{[%clk 0:01:14.4]} 43... h5 {[%clk 0:01:29.9]} 44. Kf3 {[%clk 0:01:14]} 44...
Bc3 {[%clk 0:01:29.5]} 45. Ke4 {[%clk 0:01:13.1]} 45... Bb4 {[%clk 0:01:29.5]}
46. Ra6 {[%clk 0:01:11.7]} 46... Kf7 {[%clk 0:01:29.9]} 47. f5 {[%clk
0:01:11.2]} 47... exf5+ {[%clk 0:01:30.2]} 48. Kxf5 {[%clk 0:01:12.1]} 48... h4
{[%clk 0:01:30.4]} 49. Ra7+ {[%clk 0:01:11.8]} 49... Ke8 {[%clk 0:01:29.6]} 50.
Ke6 {[%clk 0:01:11.7]} 50... Kd8 {[%clk 0:01:29.8]} 51. Ra8+ {[%clk 0:01:11.3]}
51... Kc7 {[%clk 0:01:30.4]} 52. Kf7 {[%clk 0:01:11.2]} 52... Kb7 {[%clk
0:01:29.3]} 53. Rd8 {[%clk 0:01:11.4]} 53... Kc7 {[%clk 0:01:27.8]} 54. Rd3
{[%clk 0:01:08.6]} 54... a4 {[%clk 0:01:25.7]} 55. e6 {[%clk 0:01:08.7]} 55...
a3 {[%clk 0:01:25.8]} 56. e7 {[%clk 0:01:08.7]} 56... a2 {[%clk 0:01:26.2]} 57.
Rd1 {[%clk 0:01:08.1]} 1-0

[Event "Late-Titled-Tuesday-Blitz-October-03-2023"]
[Site "Chess.com"]
[Date "2023.10.03"]
[Round "8"]
[White "Alina_Gumerovna"]
[Black "SEBAZZANO"]
[Result "1/2-1/2"]
[WhiteElo "2110"]
[BlackElo "2244"]
[TimeControl "180+1"]
[EndTime "15:23:03 PDT"]
[Termination "Game drawn by repetition"]

1. e4 {[%clk 0:03:00]} 1... c5 {[%clk 0:02:59.6]} 2. Nf3 {[%clk 0:02:58.8]} 2...
Nc6 {[%clk 0:02:59.5]} 3. d4 {[%clk 0:02:59.3]} 3... cxd4 {[%clk 0:03:00.4]} 4.
Nxd4 {[%clk 0:02:59.6]} 4... Nf6 {[%clk 0:03:00.9]} 5. Nc3 {[%clk 0:02:59.5]}
5... d6 {[%clk 0:03:00.4]} 6. Bc4 {[%clk 0:02:58.3]} 6... e6 {[%clk 0:02:59.8]}
7. f3 {[%clk 0:02:56.1]} 7... Be7 {[%clk 0:02:58.6]} 8. Be3 {[%clk 0:02:56]}
8... a6 {[%clk 0:02:58.1]} 9. a4 {[%clk 0:02:55.4]} 9... Bd7 {[%clk 0:02:55.8]}
10. O-O {[%clk 0:02:42.3]} 10... Rc8 {[%clk 0:02:53.7]} 11. Qd2 {[%clk
0:02:42.3]} 11... Ne5 {[%clk 0:02:32.4]} 12. Bb3 {[%clk 0:02:41.9]} 12... Nc4
{[%clk 0:02:32.3]} 13. Bxc4 {[%clk 0:02:42]} 13... Rxc4 {[%clk 0:02:33.2]} 14.
Qd3 {[%clk 0:02:42.1]} 14... Rc8 {[%clk 0:02:29.8]} 15. f4 {[%clk 0:02:42.1]}
15... O-O {[%clk 0:02:07.1]} 16. h3 {[%clk 0:02:38.5]} 16... Qc7 {[%clk
0:01:52.3]} 17. Rae1 {[%clk 0:02:33.5]} 17... Qc4 {[%clk 0:01:42]} 18. Qxc4
{[%clk 0:02:31.7]} 18... Rxc4 {[%clk 0:01:41.5]} 19. e5 {[%clk 0:02:31.8]} 19...
dxe5 {[%clk 0:01:25.9]} 20. fxe5 {[%clk 0:02:31.4]} 20... Nd5 {[%clk 0:01:21.6]}
21. Nxd5 {[%clk 0:02:30.9]} 21... exd5 {[%clk 0:01:22.5]} 22. b3 {[%clk
0:02:23.2]} 22... Rcc8 {[%clk 0:01:15.1]} 23. Rf3 {[%clk 0:02:16.4]} 23... Bc5
{[%clk 0:01:00.7]} 24. Re2 {[%clk 0:02:15.6]} 24... Rfe8 {[%clk 0:00:49.2]} 25.
Ref2 {[%clk 0:02:13.3]} 25... Rxe5 {[%clk 0:00:23.5]} 26. c3 {[%clk 0:01:51]}
26... Bxd4 {[%clk 0:00:23]} 27. Bxd4 {[%clk 0:01:50.1]} 27... Re7 {[%clk
0:00:23.6]} 28. Rg3 {[%clk 0:01:41.3]} 28... g6 {[%clk 0:00:22.3]} 29. Rgf3
{[%clk 0:01:41.5]} 29... Be6 {[%clk 0:00:22.3]} 30. b4 {[%clk 0:01:40.3]} 30...
Rc4 {[%clk 0:00:20.7]} 31. a5 {[%clk 0:01:39.5]} 31... Rd7 {[%clk 0:00:20.2]}
32. Rf6 {[%clk 0:01:38.6]} 32... Rdc7 {[%clk 0:00:19.6]} 33. Kh2 {[%clk
0:01:38.7]} 33... Rd7 {[%clk 0:00:19.5]} 34. Kg1 {[%clk 0:01:39.3]} 34... Rdc7
{[%clk 0:00:19.6]} 35. Kf1 {[%clk 0:01:39.8]} 35... Rd7 {[%clk 0:00:19.3]} 36.
Ke2 {[%clk 0:01:40.3]} 36... Rdc7 {[%clk 0:00:19.4]} 37. Kd2 {[%clk 0:01:40.7]}
37... Rd7 {[%clk 0:00:19.6]} 38. Ke3 {[%clk 0:01:41.2]} 38... Rdc7 {[%clk
0:00:20.1]} 39. Kd2 {[%clk 0:01:40.7]} 39... Rd7 {[%clk 0:00:20.4]} 40. Ke3
{[%clk 0:01:41.6]} 40... Rdc7 {[%clk 0:00:20.6]} 41. Kd2 {[%clk 0:01:42.2]}
1/2-1/2

[Event "Late-Titled-Tuesday-Blitz-October-03-2023"]
[Site "Chess.com"]
[Date "2023.10.03"]
[Round "8"]
[White "Grischuk"]
[Black "ViIIagra"]
[Result "1-0"]
[WhiteElo "3011"]
[BlackElo "2931"]
[TimeControl "180+1"]
[EndTime "15:23:05 PDT"]
[Termination "Grischuk won by resignation"]

1. d4 {[%clk 0:03:00.9]} 1... c6 {[%clk 0:02:58.6]} 2. Nf3 {[%clk 0:02:59]} 2...
Nf6 {[%clk 0:02:58]} 3. Bg5 {[%clk 0:02:58.9]} 3... Qb6 {[%clk 0:02:54.3]} 4.
Qc1 {[%clk 0:02:57]} 4... d6 {[%clk 0:02:52.9]} 5. e3 {[%clk 0:02:53]} 5... Nbd7
{[%clk 0:02:52.4]} 6. c4 {[%clk 0:02:40.6]} 6... e5 {[%clk 0:02:39.9]} 7. Nc3
{[%clk 0:02:40.5]} 7... h6 {[%clk 0:02:21.4]} 8. Bh4 {[%clk 0:02:38.1]} 8... Be7
{[%clk 0:02:14.2]} 9. Qc2 {[%clk 0:02:32.6]} 9... Qc7 {[%clk 0:02:04.1]} 10. Bd3
{[%clk 0:02:30.5]} 10... a6 {[%clk 0:01:59.1]} 11. O-O {[%clk 0:02:29.5]} 11...
O-O {[%clk 0:01:58.9]} 12. Rac1 {[%clk 0:02:27.2]} 12... Re8 {[%clk 0:01:58.3]}
13. Rfd1 {[%clk 0:02:21.3]} 13... Nh5 {[%clk 0:01:41.7]} 14. Bxe7 {[%clk
0:02:15.2]} 14... Rxe7 {[%clk 0:01:42.6]} 15. b4 {[%clk 0:02:08]} 15... Nhf6
{[%clk 0:01:38.8]} 16. h3 {[%clk 0:02:01.1]} 16... a5 {[%clk 0:01:25.6]} 17. a3
{[%clk 0:01:59.5]} 17... exd4 {[%clk 0:01:24.7]} 18. Nxd4 {[%clk 0:01:58.9]}
18... Ne5 {[%clk 0:01:25.1]} 19. Be2 {[%clk 0:01:54.8]} 19... axb4 {[%clk
0:01:19]} 20. axb4 {[%clk 0:01:55.7]} 20... Bd7 {[%clk 0:01:12]} 21. Rd2 {[%clk
0:01:51.1]} 21... Qb6 {[%clk 0:01:07]} 22. Qb3 {[%clk 0:01:44]} 22... Ree8
{[%clk 0:00:28.3]} 23. Rcd1 {[%clk 0:01:42.9]} 23... Qc7 {[%clk 0:00:18.6]} 24.
Nf3 {[%clk 0:01:27]} 24... Re6 {[%clk 0:00:17.2]} 25. b5 {[%clk 0:01:27.5]}
25... Ne8 {[%clk 0:00:15.4]} 26. b6 {[%clk 0:01:24.7]} 26... Nxf3+ {[%clk
0:00:14.4]} 27. Bxf3 {[%clk 0:01:24.3]} 27... Qd8 {[%clk 0:00:15.2]} 28. c5
{[%clk 0:01:18]} 28... Qe7 {[%clk 0:00:15.6]} 29. cxd6 {[%clk 0:01:12.2]} 29...
Rxd6 {[%clk 0:00:14.2]} 30. Rxd6 {[%clk 0:01:11.9]} 30... Nxd6 {[%clk
0:00:15.1]} 31. Qb4 {[%clk 0:01:11.2]} 1-0

[Event "Late-Titled-Tuesday-Blitz-October-03-2023"]
[Site "Chess.com"]
[Date "2023.10.03"]
[Round "8"]
[White "Yushko_Olga"]
[Black "WilliamAlfaroCaracas"]
[Result "1-0"]
[WhiteElo "2114"]
[BlackElo "2194"]
[TimeControl "180+1"]
[EndTime "15:23:13 PDT"]
[Termination "Yushko_Olga won on time"]

1. d4 {[%clk 0:03:00]} 1... Nf6 {[%clk 0:02:59.2]} 2. c4 {[%clk 0:03:00]} 2...
g6 {[%clk 0:02:59.6]} 3. Nc3 {[%clk 0:02:59.5]} 3... Bg7 {[%clk 0:02:58.4]} 4.
Nf3 {[%clk 0:03:00.3]} 4... O-O {[%clk 0:02:57.9]} 5. Bg5 {[%clk 0:03:01.1]}
5... d5 {[%clk 0:02:51.4]} 6. e3 {[%clk 0:03:00.9]} 6... c6 {[%clk 0:02:43.3]}
7. Be2 {[%clk 0:02:59.1]} 7... h6 {[%clk 0:02:41.3]} 8. Bh4 {[%clk 0:02:59]}
8... Nbd7 {[%clk 0:02:37.3]} 9. O-O {[%clk 0:02:56.5]} 9... dxc4 {[%clk
0:02:24.9]} 10. Bxc4 {[%clk 0:02:55.3]} 10... b5 {[%clk 0:02:24.7]} 11. Be2
{[%clk 0:02:50.4]} 11... Bb7 {[%clk 0:02:23.4]} 12. Rc1 {[%clk 0:02:48.2]} 12...
Rc8 {[%clk 0:02:06.5]} 13. Qb3 {[%clk 0:02:40.5]} 13... a6 {[%clk 0:02:02.6]}
14. Rfd1 {[%clk 0:02:37.6]} 14... Nb6 {[%clk 0:01:58.2]} 15. a4 {[%clk
0:02:32.2]} 15... Nbd5 {[%clk 0:01:31.5]} 16. axb5 {[%clk 0:02:29.8]} 16... axb5
{[%clk 0:01:29.9]} 17. Bxf6 {[%clk 0:02:25.1]} 17... Nxf6 {[%clk 0:01:28.9]} 18.
Ne5 {[%clk 0:02:20.1]} 18... Nd5 {[%clk 0:01:23.1]} 19. Ne4 {[%clk 0:02:19.7]}
19... Bxe5 {[%clk 0:01:21.3]} 20. dxe5 {[%clk 0:02:19.7]} 20... Qc7 {[%clk
0:01:21.1]} 21. Nc5 {[%clk 0:02:16]} 21... Ba8 {[%clk 0:01:15.1]} 22. f4 {[%clk
0:02:02.8]} 22... Rfd8 {[%clk 0:01:07.1]} 23. e6 {[%clk 0:01:57.7]} 23... f6
{[%clk 0:00:59.7]} 24. Kf2 {[%clk 0:01:39.5]} 24... g5 {[%clk 0:00:56]} 25. Qc2
{[%clk 0:01:36.5]} 25... Kg7 {[%clk 0:00:54.4]} 26. g3 {[%clk 0:01:33.5]} 26...
Rd6 {[%clk 0:00:36]} 27. Qf5 {[%clk 0:01:30.6]} 27... Rcd8 {[%clk 0:00:32.9]}
28. Bd3 {[%clk 0:01:29.3]} 28... Kf8 {[%clk 0:00:06.7]} 29. Qg6 {[%clk
0:01:25.5]} 1-0

[Event "Late-Titled-Tuesday-Blitz-October-03-2023"]
[Site "Chess.com"]
[Date "2023.10.03"]
[Round "8"]
[White "Nick12772"]
[Black "RebecaJimnz"]
[Result "1-0"]
[WhiteElo "2365"]
[BlackElo "2211"]
[TimeControl "180+1"]
[EndTime "15:23:22 PDT"]
[Termination "Nick12772 won by resignation"]

1. Nf3 {[%clk 0:03:00.9]} 1... g6 {[%clk 0:02:59]} 2. g3 {[%clk 0:03:01.4]} 2...
Bg7 {[%clk 0:02:59.4]} 3. Bg2 {[%clk 0:03:02.3]} 3... Nf6 {[%clk 0:03:00.1]} 4.
O-O {[%clk 0:03:02.8]} 4... O-O {[%clk 0:03:00.8]} 5. c4 {[%clk 0:03:03.5]} 5...
d5 {[%clk 0:03:00.3]} 6. d4 {[%clk 0:02:57.8]} 6... c6 {[%clk 0:02:57.7]} 7.
cxd5 {[%clk 0:02:57.9]} 7... cxd5 {[%clk 0:02:57.8]} 8. Ne5 {[%clk 0:02:58.5]}
8... Nc6 {[%clk 0:02:53.1]} 9. Nxc6 {[%clk 0:02:58.7]} 9... bxc6 {[%clk
0:02:54]} 10. Nc3 {[%clk 0:02:58.9]} 10... Ba6 {[%clk 0:02:37.8]} 11. Bf4 {[%clk
0:02:57]} 11... Nd7 {[%clk 0:02:32]} 12. Rc1 {[%clk 0:02:43.9]} 12... e5 {[%clk
0:02:30.3]} 13. dxe5 {[%clk 0:02:42.4]} 13... Nxe5 {[%clk 0:02:31.2]} 14. Na4
{[%clk 0:02:30.9]} 14... Re8 {[%clk 0:02:22.1]} 15. Nc5 {[%clk 0:02:29.7]} 15...
Bb5 {[%clk 0:01:41.6]} 16. a4 {[%clk 0:02:26.9]} 16... Bc4 {[%clk 0:01:41.5]}
17. b3 {[%clk 0:02:26.4]} 17... Qe7 {[%clk 0:01:35.7]} 18. bxc4 {[%clk
0:02:16.3]} 18... Qxc5 {[%clk 0:01:33]} 19. cxd5 {[%clk 0:02:16.5]} 19... Qa5
{[%clk 0:01:30.6]} 20. dxc6 {[%clk 0:02:05.4]} 20... Rac8 {[%clk 0:01:25.8]} 21.
Bxe5 {[%clk 0:02:01.9]} 21... Bxe5 {[%clk 0:01:21.7]} 22. Qb3 {[%clk 0:01:52.7]}
22... Bc7 {[%clk 0:01:12.5]} 23. e3 {[%clk 0:01:41.3]} 23... Qe5 {[%clk
0:01:06.4]} 24. Qd5 {[%clk 0:01:35]} 24... Qf6 {[%clk 0:01:00.9]} 25. Qf3 {[%clk
0:01:25.9]} 25... Qe5 {[%clk 0:00:45]} 26. Rfd1 {[%clk 0:01:24.2]} 26... Bb6
{[%clk 0:00:38.8]} 27. Rd7 {[%clk 0:01:20.6]} 27... Rf8 {[%clk 0:00:33.8]} 28.
Qd5 {[%clk 0:01:14.6]} 28... Qe8 {[%clk 0:00:19.4]} 29. h4 {[%clk 0:01:11.2]}
29... Bxe3 {[%clk 0:00:19]} 30. Re1 {[%clk 0:01:05.2]} 30... Bxf2+ {[%clk
0:00:10]} 31. Kxf2 {[%clk 0:01:06.1]} 1-0